[Event "1er Festival international de Cassis 2022"]
[Site "Cassis"]
[Date "2022.05.26"]
[Round "2.8"]
[White "Bremond, Pascal"]
[Black "Degraeve, Remy"]
[Result "0-1"]
[TimeControl "1 h 30 + 30 s"]
[WhiteElo "1915"]
[BlackElo "2383"]

1. d4 {[%clk 01:30:57]} {[%emt 00:00:02]} d5 {[%clk 01:30:58]} {[%emt
00:00:04]} 2. c4 {[%clk 01:31:20]} {[%emt 00:00:06]} e6 {[%clk 01:31:25]}
{[%emt 00:00:03]} 3. Nf3 {[%clk 01:31:45]} {[%emt 00:00:05]} Nf6 {[%clk
01:31:50]} {[%emt 00:00:05]} 4. g3 {[%clk 01:32:11]} {[%emt 00:00:04]} Bb4+
{[%clk 01:32:14]} {[%emt 00:00:07]} 5. Nbd2 {[%clk 01:32:26]} {[%emt 00:00:15]}
dxc4 {[%clk 01:31:16]} {[%emt 00:01:24]} 6. Qc2 {[%clk 01:31:33]} {[%emt
00:01:27]} b5 {[%clk 01:29:05]} {[%emt 00:02:42]} 7. a4 {[%clk 01:29:47]}
{[%emt 00:02:15]} c6 {[%clk 01:28:23]} {[%emt 00:01:12]} 8. Bg2 {[%clk
01:29:54]} {[%emt 00:00:22]} Bb7 {[%clk 01:26:31]} {[%emt 00:02:22]} 9. O-O
{[%clk 01:29:45]} {[%emt 00:00:39]} a6 {[%clk 01:23:45]} {[%emt 00:03:17]} 10.
e4 {[%clk 01:17:45]} {[%emt 00:12:30]} Nbd7 {[%clk 01:18:30]} {[%emt 00:05:46]}
11. e5 {[%clk 01:17:10]} {[%emt 00:01:05]} Nd5 {[%clk 01:18:54]} {[%emt
00:00:05]} 12. Ne4 {[%clk 01:17:23]} {[%emt 00:00:16]} h6 {[%clk 01:15:10]}
{[%emt 00:04:15]} 13. h4 {[%clk 01:11:31]} {[%emt 00:06:22]} Be7 {[%clk
01:15:30]} {[%emt 00:00:09]} 14. b3 {[%clk 01:07:22]} {[%emt 00:04:40]} cxb3
{[%clk 01:12:41]} {[%emt 00:03:20]} 15. Qxb3 {[%clk 01:06:09]} {[%emt
00:01:43]} Qb6 {[%clk 01:11:28]} {[%emt 00:01:43]} 16. Ba3 {[%clk 00:49:21]}
{[%emt 00:17:18]} b4 {[%clk 01:11:40]} {[%emt 00:00:17]} 17. Bb2 {[%clk
00:38:06]} {[%emt 00:11:44]} a5 {[%clk 01:08:54]} {[%emt 00:03:17]} 18. Nfd2
{[%clk 00:32:47]} {[%emt 00:05:49]} Ba6 {[%clk 01:09:18]} {[%emt 00:00:06]} 19.
Nc4 {[%clk 00:32:26]} {[%emt 00:00:51]} Bxc4 {[%clk 01:09:43]} {[%emt
00:00:06]} 20. Qxc4 {[%clk 00:32:50]} {[%emt 00:00:05]} O-O {[%clk 01:07:56]}
{[%emt 00:02:18]} 21. Rac1 {[%clk 00:30:56]} {[%emt 00:02:24]} Rfc8 {[%clk
01:01:23]} {[%emt 00:07:03]} 22. Nc5 {[%clk 00:29:25]} {[%emt 00:02:00]} Nxc5
{[%clk 01:00:34]} {[%emt 00:01:19]} 23. dxc5 {[%clk 00:28:56]} {[%emt
00:00:59]} Qa6 {[%clk 01:01:01]} {[%emt 00:00:03]} 24. Qe4 {[%clk 00:28:04]}
{[%emt 00:01:22]} Rab8 {[%clk 00:53:51]} {[%emt 00:07:40]} 25. Rfd1 {[%clk
00:27:08]} {[%emt 00:01:26]} b3 {[%clk 00:53:08]} {[%emt 00:01:13]} 26. Bf1
{[%clk 00:24:59]} {[%emt 00:02:39]} Qa7 {[%clk 00:53:35]} {[%emt 00:00:04]} 27.
Bd3 {[%clk 00:20:15]} {[%emt 00:05:14]} g6 {[%clk 00:52:40]} {[%emt 00:01:24]}
28. h5 {[%clk 00:19:19]} {[%emt 00:01:26]} Rb4 {[%clk 00:53:06]} {[%emt
00:00:05]} 29. Rc4 {[%clk 00:14:47]} {[%emt 00:05:02]} Rxc4 {[%clk 00:52:08]}
{[%emt 00:01:28]} 30. Bxc4 {[%clk 00:14:57]} {[%emt 00:00:20]} Bxc5 {[%clk
00:49:38]} {[%emt 00:02:59]} 31. hxg6 {[%clk 00:11:18]} {[%emt 00:04:09]} Bxf2+
{[%clk 00:50:01]} {[%emt 00:00:07]} 32. Kh2 {[%clk 00:08:41]} {[%emt 00:03:08]}
Qe3 {[%clk 00:49:00]} {[%emt 00:01:30]} 33. gxf7+ {[%clk 00:07:37]} {[%emt
00:01:34]} Kg7 {[%clk 00:47:56]} {[%emt 00:01:35]} 34. Qg4+ {[%clk 00:03:22]}
{[%emt 00:04:44]} Qg5 {[%clk 00:48:21]} {[%emt 00:00:05]} 35. Qf3 {[%clk
00:02:17]} {[%emt 00:01:35]} Rf8 {[%clk 00:41:38]} {[%emt 00:07:13]} 36. Qxf2
{[%clk 00:02:36]} {[%emt 00:00:12]} Qh5+ {[%clk 00:42:03]} {[%emt 00:00:05]} 37.
Kg2 {[%clk 00:02:50]} {[%emt 00:00:15]} Qxd1 {[%clk 00:42:29]} {[%emt
00:00:04]} 38. Be2 {[%clk 00:00:32]} {[%emt 00:02:48]} Qc2 {[%clk 00:42:12]}
{[%emt 00:00:47]} 39. Bc1 {[%clk 00:00:00]} {[%emt 00:00:10]} 0-1

[Event "1er Festival international de Cassis 2022"]
[Site "Cassis"]
[Date "2022.05.27"]
[Round "3.1"]
[White "Gozzoli, Yannick"]
[Black "Petrosyan, Armen"]
[Result "1-0"]
[TimeControl "1 h 30 + 30 s"]
[WhiteElo "2591"]
[BlackElo "2396"]

1. c4 {[%clk 01:30:50]} {[%emt 00:00:09]} c5 {[%clk 01:30:00]} {[%emt
00:01:00]} 2. Nc3 {[%clk 01:31:06]} {[%emt 00:00:14]} Nf6 {[%clk 01:30:23]}
{[%emt 00:00:07]} 3. Nf3 {[%clk 01:31:01]} {[%emt 00:00:35]} Nc6 {[%clk
01:30:45]} {[%emt 00:00:09]} 4. g3 {[%clk 01:31:07]} {[%emt 00:00:24]} d5
{[%clk 01:21:19]} {[%emt 00:09:56]} 5. cxd5 {[%clk 01:30:31]} {[%emt 00:01:05]}
Nxd5 {[%clk 01:21:42]} {[%emt 00:00:07]} 6. Bg2 {[%clk 01:30:57]} {[%emt
00:00:04]} Nc7 {[%clk 01:22:07]} {[%emt 00:00:06]} 7. a3 {[%clk 01:31:19]}
{[%emt 00:00:07]} e5 {[%clk 01:22:25]} {[%emt 00:00:13]} 8. b4 {[%clk
01:31:06]} {[%emt 00:00:43]} cxb4 {[%clk 01:20:03]} {[%emt 00:02:53]} 9. axb4
{[%clk 01:31:22]} {[%emt 00:00:14]} a6 {[%clk 01:08:01]} {[%emt 00:12:32]} 10.
Bb2 {[%clk 01:17:16]} {[%emt 00:14:35]} f6 {[%clk 01:07:17]} {[%emt 00:01:14]}
11. b5 {[%clk 01:12:58]} {[%emt 00:04:48]} axb5 {[%clk 01:07:16]} {[%emt
00:00:32]} 12. Nxb5 {[%clk 01:12:07]} {[%emt 00:01:20]} Rxa1 {[%clk 01:07:26]}
{[%emt 00:00:20]} 13. Nxc7+ {[%clk 01:12:32]} {[%emt 00:00:04]} Qxc7 {[%clk
01:07:52]} {[%emt 00:00:04]} 14. Qxa1 {[%clk 01:11:26]} {[%emt 00:01:36]} Bb4
{[%clk 01:05:57]} {[%emt 00:02:26]} 15. O-O {[%clk 01:08:13]} {[%emt 00:03:43]}
O-O {[%clk 01:02:56]} {[%emt 00:03:31]} 16. Bc3 {[%clk 00:54:02]} {[%emt
00:14:40]} Bxc3 {[%clk 00:50:20]} {[%emt 00:13:07]} 17. Qxc3 {[%clk 00:53:27]}
{[%emt 00:01:05]} Rd8 {[%clk 00:49:38]} {[%emt 00:01:11]} 18. d3 {[%clk
00:51:57]} {[%emt 00:01:59]} Be6 {[%clk 00:47:48]} {[%emt 00:02:20]} 19. Rb1
{[%clk 00:50:30]} {[%emt 00:01:57]} Rd7 {[%clk 00:43:47]} {[%emt 00:04:32]} 20.
h3 {[%clk 00:42:30]} {[%emt 00:08:30]} Bd5 {[%clk 00:33:37]} {[%emt 00:10:40]}
21. Rb5 {[%clk 00:38:17]} {[%emt 00:04:42]} Ne7 {[%clk 00:28:57]} {[%emt
00:05:10]} 22. Rc5 {[%clk 00:32:55]} {[%emt 00:05:52]} Qd6 {[%clk 00:28:52]}
{[%emt 00:00:35]} 23. Nd2 {[%clk 00:32:38]} {[%emt 00:00:47]} Bxg2 {[%clk
00:28:56]} {[%emt 00:00:27]} 24. Kxg2 {[%clk 00:33:02]} {[%emt 00:00:06]} Qe6
{[%clk 00:25:21]} {[%emt 00:04:06]} 25. Kh2 {[%clk 00:27:51]} {[%emt 00:05:42]}
Rd5 {[%clk 00:13:36]} {[%emt 00:12:15]} 26. Qb3 {[%clk 00:26:24]} {[%emt
00:01:57]} Kf7 {[%clk 00:13:40]} {[%emt 00:00:26]} 27. Nc4 {[%clk 00:19:57]}
{[%emt 00:06:57]} b6 {[%clk 00:04:19]} {[%emt 00:09:51]} 28. Rb5 {[%clk
00:20:04]} {[%emt 00:00:23]} Kg6 {[%clk 00:02:27]} {[%emt 00:02:26]} 29. Rxb6
{[%clk 00:20:03]} {[%emt 00:00:30]} Qd7 {[%clk 00:02:00]} {[%emt 00:00:58]} 30.
Rb7 {[%clk 00:18:28]} {[%emt 00:02:04]} Qd8 {[%clk 00:01:51]} {[%emt 00:00:40]}
31. Qa4 {[%clk 00:15:47]} {[%emt 00:03:11]} Rc5 {[%clk 00:01:25]} {[%emt
00:00:56]} 32. Qa7 {[%clk 00:14:40]} {[%emt 00:01:36]} 1-0

[Event "1er Festival international de Cassis 2022"]
[Site "Cassis"]
[Date "2022.05.27"]
[Round "3.2"]
[White "Degraeve, Remy"]
[Black "Kunin, Vitaly"]
[Result "1-0"]
[TimeControl "1 h 30 + 30 s"]
[WhiteElo "2383"]
[BlackElo "2539"]

1. e4 {[%clk 01:01:40]} {[%emt 00:29:20]} d6 {[%clk 01:29:51]} {[%emt
00:01:09]} 2. d4 {[%clk 01:01:56]} {[%emt 00:00:14]} Nf6 {[%clk 01:30:14]}
{[%emt 00:00:07]} 3. Nc3 {[%clk 01:02:23]} {[%emt 00:00:04]} Nbd7 {[%clk
01:30:35]} {[%emt 00:00:09]} 4. f4 {[%clk 01:02:07]} {[%emt 00:00:46]} Nb6
{[%clk 01:30:35]} {[%emt 00:00:30]} 5. Nf3 {[%clk 01:02:18]} {[%emt 00:00:19]}
d5 {[%clk 01:30:55]} {[%emt 00:00:09]} 6. e5 {[%clk 01:02:44]} {[%emt
00:00:05]} Ne4 {[%clk 01:31:16]} {[%emt 00:00:08]} 7. Nxe4 {[%clk 01:03:12]}
{[%emt 00:00:03]} dxe4 {[%clk 01:31:35]} {[%emt 00:00:11]} 8. Ng5 {[%clk
01:03:40]} {[%emt 00:00:02]} Qd5 {[%clk 01:31:47]} {[%emt 00:00:17]} 9. a4
{[%clk 01:04:05]} {[%emt 00:00:06]} a5 {[%clk 01:22:36]} {[%emt 00:09:41]} 10.
c4 {[%clk 01:04:07]} {[%emt 00:00:28]} Nxc4 {[%clk 01:20:53]} {[%emt 00:02:13]}
11. Qc2 {[%clk 01:03:58]} {[%emt 00:00:39]} Nb6 {[%clk 01:15:24]} {[%emt
00:05:58]} 12. Qxc7 {[%clk 01:04:17]} {[%emt 00:00:12]} f6 {[%clk 01:13:48]}
{[%emt 00:02:06]} 13. Qxb6 {[%clk 01:01:04]} {[%emt 00:03:43]} fxg5 {[%clk
01:14:09]} {[%emt 00:00:09]} 14. Qb5+ {[%clk 00:59:30]} {[%emt 00:02:04]} Qxb5
{[%clk 01:12:24]} {[%emt 00:02:15]} 15. Bxb5+ {[%clk 00:59:54]} {[%emt
00:00:06]} Bd7 {[%clk 01:09:20]} {[%emt 00:03:35]} 16. fxg5 {[%clk 00:59:32]}
{[%emt 00:00:51]} e6 {[%clk 01:06:49]} {[%emt 00:03:01]} 17. Bd2 {[%clk
00:56:01]} {[%emt 00:04:01]} Be7 {[%clk 01:02:29]} {[%emt 00:04:49]} 18. Rf1
{[%clk 00:53:28]} {[%emt 00:03:04]} Bxb5 {[%clk 00:34:11]} {[%emt 00:28:49]} 19.
axb5 {[%clk 00:53:14]} {[%emt 00:00:43]} Rf8 {[%clk 00:31:41]} {[%emt
00:03:00]} 20. Rxf8+ {[%clk 00:53:09]} {[%emt 00:00:36]} Kxf8 {[%clk 00:32:00]}
{[%emt 00:00:10]} 21. Ke2 {[%clk 00:41:47]} {[%emt 00:11:52]} Rd8 {[%clk
00:29:41]} {[%emt 00:02:49]} 22. Bc3 {[%clk 00:33:39]} {[%emt 00:08:39]} b6
{[%clk 00:27:30]} {[%emt 00:02:41]} 23. Ke3 {[%clk 00:28:29]} {[%emt 00:05:40]}
Bxg5+ {[%clk 00:22:11]} {[%emt 00:05:49]} 24. Kxe4 {[%clk 00:28:56]} {[%emt
00:00:04]} Be7 {[%clk 00:22:31]} {[%emt 00:00:10]} 25. Kd3 {[%clk 00:29:22]}
{[%emt 00:00:04]} Ke8 {[%clk 00:10:56]} {[%emt 00:12:05]} 26. Ra4 {[%clk
00:28:44]} {[%emt 00:01:08]} Kd7 {[%clk 00:03:22]} {[%emt 00:08:03]} 27. Ke4
{[%clk 00:22:05]} {[%emt 00:07:10]} Rf8 {[%clk 00:02:40]} {[%emt 00:01:12]} 28.
d5 {[%clk 00:22:30]} {[%emt 00:00:05]} Bc5 {[%clk 00:02:18]} {[%emt 00:00:51]}
29. Bd4 {[%clk 00:22:44]} {[%emt 00:00:17]} Bxd4 {[%clk 00:01:30]} {[%emt
00:01:22]} 30. Rxd4 {[%clk 00:23:11]} {[%emt 00:00:02]} Rf2 {[%clk 00:01:46]}
{[%emt 00:00:14]} 31. dxe6+ {[%clk 00:22:43]} {[%emt 00:00:59]} Kxe6 {[%clk
00:02:07]} {[%emt 00:00:09]} 32. Rd6+ {[%clk 00:23:05]} {[%emt 00:00:08]} Ke7
{[%clk 00:02:31]} {[%emt 00:00:06]} 33. Rxb6 {[%clk 00:14:00]} {[%emt
00:09:35]} Rxg2 {[%clk 00:02:55]} {[%emt 00:00:06]} 34. b3 {[%clk 00:13:05]}
{[%emt 00:01:25]} Rxh2 {[%clk 00:02:48]} {[%emt 00:00:37]} 35. Rb8 {[%clk
00:12:47]} {[%emt 00:00:48]} Kd7 {[%clk 00:01:09]} {[%emt 00:02:08]} 36. Rb7+
{[%clk 00:09:53]} {[%emt 00:03:25]} Ke6 {[%clk 00:01:33]} {[%emt 00:00:06]} 37.
Rb6+ {[%clk 00:09:13]} {[%emt 00:01:10]} Ke7 {[%clk 00:01:59]} {[%emt
00:00:04]} 38. Rb7+ {[%clk 00:05:17]} {[%emt 00:04:27]} Ke6 {[%clk 00:02:24]}
{[%emt 00:00:04]} 39. Kd4 {[%clk 00:05:44]} {[%emt 00:00:03]} g5 {[%clk
00:02:06]} {[%emt 00:00:48]} 40. b6 {[%clk 00:05:59]} {[%emt 00:00:16]} Rh4+
{[%clk 00:01:52]} {[%emt 00:00:43]} 41. Kc5 {[%clk 00:06:10]} {[%emt 00:00:18]}
Kxe5 {[%clk 00:01:13]} {[%emt 00:01:09]} 42. Ra7 {[%clk 00:05:00]} {[%emt
00:01:41]} Rh3 {[%clk 00:00:45]} {[%emt 00:00:58]} 43. Rxa5 {[%clk 00:04:25]}
{[%emt 00:01:01]} Rd3 {[%clk 00:00:41]} {[%emt 00:00:38]} 44. b7 {[%clk
00:04:26]} {[%emt 00:00:29]} Rd8 {[%clk 00:00:55]} {[%emt 00:00:16]} 45. Ra8
{[%clk 00:04:52]} {[%emt 00:00:04]} Rd5+ {[%clk 00:01:17]} {[%emt 00:00:09]} 46.
Kc4 {[%clk 00:05:18]} {[%emt 00:00:04]} Rd4+ {[%clk 00:01:36]} {[%emt
00:00:10]} 47. Kc3 {[%clk 00:05:45]} {[%emt 00:00:03]} Kd5 {[%emt 00:01:39]}
1-0

[Event "1er Festival international de Cassis 2022"]
[Site "Cassis"]
[Date "2022.05.27"]
[Round "3.3"]
[White "Sivuk, Vitaly"]
[Black "Bacrot, Alexandre"]
[Result "1-0"]
[TimeControl "1 h 30 + 30 s"]
[WhiteElo "2529"]
[BlackElo "2341"]

1. Nf3 {[%clk 01:30:54]} {[%emt 00:00:05]} g6 {[%clk 01:30:42]} {[%emt
00:00:19]} 2. e4 {[%clk 01:30:59]} {[%emt 00:00:24]} Bg7 {[%clk 01:31:07]}
{[%emt 00:00:06]} 3. d4 {[%clk 01:31:16]} {[%emt 00:00:12]} d6 {[%clk
01:31:12]} {[%emt 00:00:26]} 4. Bc4 {[%clk 01:31:05]} {[%emt 00:00:41]} a6
{[%clk 01:29:40]} {[%emt 00:02:03]} 5. O-O {[%clk 01:30:48]} {[%emt 00:00:46]}
e6 {[%clk 01:29:10]} {[%emt 00:01:00]} 6. Bb3 {[%clk 01:31:04]} {[%emt
00:00:14]} b5 {[%clk 01:28:24]} {[%emt 00:01:16]} 7. a4 {[%clk 01:30:03]}
{[%emt 00:01:31]} b4 {[%clk 01:27:19]} {[%emt 00:01:36]} 8. a5 {[%clk
01:29:58]} {[%emt 00:00:34]} Nf6 {[%clk 01:21:45]} {[%emt 00:06:04]} 9. e5
{[%clk 01:22:27]} {[%emt 00:08:01]} dxe5 {[%clk 01:19:28]} {[%emt 00:02:48]} 10.
Ba4+ {[%clk 01:21:08]} {[%emt 00:01:47]} Nfd7 {[%clk 01:13:48]} {[%emt
00:06:10]} 11. dxe5 {[%clk 01:17:18]} {[%emt 00:04:21]} h6 {[%clk 01:08:30]}
{[%emt 00:05:49]} 12. Qd4 {[%clk 00:57:01]} {[%emt 00:20:45]} Qe7 {[%clk
01:00:47]} {[%emt 00:08:14]} 13. Qe4 {[%clk 00:54:35]} {[%emt 00:02:55]} Ra7
{[%clk 01:00:48]} {[%emt 00:00:29]} 14. Bf4 {[%clk 00:54:00]} {[%emt 00:01:05]}
Bb7 {[%clk 00:57:36]} {[%emt 00:03:43]} 15. Qe3 {[%clk 00:54:18]} {[%emt
00:00:11]} Ra8 {[%clk 00:57:56]} {[%emt 00:00:10]} 16. h4 {[%clk 00:47:13]}
{[%emt 00:07:34]} Bxf3 {[%clk 00:57:02]} {[%emt 00:01:24]} 17. Qxf3 {[%clk
00:47:26]} {[%emt 00:00:17]} c6 {[%clk 00:57:29]} {[%emt 00:00:04]} 18. h5
{[%clk 00:40:02]} {[%emt 00:07:54]} g5 {[%clk 00:53:17]} {[%emt 00:04:42]} 19.
Bg3 {[%clk 00:40:22]} {[%emt 00:00:10]} Bxe5 {[%clk 00:45:10]} {[%emt
00:08:38]} 20. Nd2 {[%clk 00:40:18]} {[%emt 00:00:33]} Bxg3 {[%clk 00:44:36]}
{[%emt 00:01:05]} 21. Qxg3 {[%clk 00:40:41]} {[%emt 00:00:06]} Nf6 {[%clk
00:41:21]} {[%emt 00:03:45]} 22. Nc4 {[%clk 00:40:18]} {[%emt 00:00:53]} O-O
{[%clk 00:40:15]} {[%emt 00:01:36]} 23. Rae1 {[%clk 00:38:59]} {[%emt
00:01:49]} Nbd7 {[%clk 00:38:42]} {[%emt 00:02:04]} 24. Qf3 {[%clk 00:35:06]}
{[%emt 00:04:22]} Rac8 {[%clk 00:31:06]} {[%emt 00:08:07]} 25. Ne5 {[%clk
00:27:15]} {[%emt 00:08:21]} Nxe5 26. Rxe5 {[%clk 00:27:42]} Rfd8 {[%clk
00:26:27]} {[%emt 00:01:52]} 27. Bb3 {[%clk 00:26:44]} {[%emt 00:01:28]} Nd5
{[%clk 00:17:13]} {[%emt 00:09:45]} 28. Rfe1 {[%clk 00:25:37]} {[%emt
00:01:37]} Kg7 {[%clk 00:12:44]} {[%emt 00:04:59]} 29. g3 {[%clk 00:25:56]}
{[%emt 00:00:10]} Rd6 {[%clk 00:11:17]} {[%emt 00:01:58]} 30. Bc4 {[%clk
00:24:32]} {[%emt 00:01:54]} Nc7 {[%clk 00:08:46]} {[%emt 00:03:02]} 31. Qe4
{[%clk 00:23:09]} {[%emt 00:01:52]} Rh8 {[%clk 00:05:52]} {[%emt 00:03:24]} 32.
Rc5 {[%clk 00:21:05]} {[%emt 00:02:36]} Nb5 {[%clk 00:03:48]} {[%emt 00:02:36]}
33. Rxc6 {[%clk 00:19:35]} {[%emt 00:01:59]} Rxc6 {[%clk 00:03:35]} {[%emt
00:00:43]} 34. Qxc6 {[%clk 00:20:03]} {[%emt 00:00:02]} Nd4 {[%clk 00:03:20]}
{[%emt 00:00:46]} 35. Qe4 {[%clk 00:20:20]} {[%emt 00:00:12]} Qf6 {[%clk
00:03:47]} {[%emt 00:00:04]} 36. Rd1 {[%clk 00:18:55]} {[%emt 00:01:55]} e5
{[%clk 00:03:11]} {[%emt 00:01:07]} 37. Bxa6 {[%clk 00:16:42]} {[%emt
00:02:42]} Nf3+ {[%clk 00:01:29]} {[%emt 00:02:13]} 38. Kg2 {[%clk 00:17:02]}
{[%emt 00:00:10]} Qxa6 {[%clk 00:01:56]} {[%emt 00:00:03]} 39. Kxf3 {[%clk
00:17:11]} {[%emt 00:00:20]} Qxa5 {[%clk 00:02:22]} {[%emt 00:00:04]} 40. Rd7
{[%clk 00:15:40]} {[%emt 00:02:01]} Qb6 {[%clk 00:02:39]} {[%emt 00:00:14]} 41.
Qxe5+ {[%clk 00:15:41]} {[%emt 00:00:29]} Qf6+ {[%clk 00:03:07]} {[%emt
00:00:03]} 42. Qxf6+ {[%clk 00:15:29]} {[%emt 00:00:41]} Kxf6 {[%clk 00:03:32]}
{[%emt 00:00:05]} 43. Rc7 {[%clk 00:15:47]} {[%emt 00:00:12]} Re8 {[%clk
00:03:28]} {[%emt 00:00:34]} 44. b3 {[%clk 00:15:16]} {[%emt 00:01:00]} Re6
{[%clk 00:02:11]} {[%emt 00:01:47]} 45. Rc4 {[%clk 00:15:34]} {[%emt 00:00:11]}
Rb6 {[%clk 00:02:37]} {[%emt 00:00:06]} 46. Ke4 {[%clk 00:15:58]} {[%emt
00:00:05]} Ke6 {[%clk 00:02:58]} {[%emt 00:00:10]} 47. g4 {[%clk 00:16:14]}
{[%emt 00:00:13]} Ke7 {[%clk 00:02:45]} {[%emt 00:00:44]} 48. Rc7+ {[%clk
00:16:20]} {[%emt 00:00:24]} Ke6 {[%clk 00:03:01]} {[%emt 00:00:14]} 49. Rc5
{[%clk 00:16:07]} {[%emt 00:00:42]} Ke7 {[%clk 00:02:43]} {[%emt 00:00:50]} 50.
f4 {[%clk 00:15:14]} {[%emt 00:01:22]} gxf4 {[%clk 00:02:49]} {[%emt 00:00:25]}
51. Kxf4 {[%clk 00:15:39]} {[%emt 00:00:05]} Kf6 {[%clk 00:02:59]} {[%emt
00:00:20]} 52. Ke4 {[%clk 00:15:20]} {[%emt 00:00:47]} Rd6 {[%clk 00:02:31]}
{[%emt 00:00:58]} 53. Rf5+ {[%clk 00:14:23]} {[%emt 00:01:27]} Ke6 {[%clk
00:02:30]} {[%emt 00:00:32]} 54. Rb5 {[%clk 00:14:24]} {[%emt 00:00:28]} Rd2
{[%clk 00:02:44]} {[%emt 00:00:17]} 55. Rxb4 {[%clk 00:14:20]} {[%emt
00:00:34]} Rxc2 {[%clk 00:03:10]} {[%emt 00:00:04]} 56. Rb6+ {[%clk 00:14:44]}
{[%emt 00:00:06]} Ke7 {[%clk 00:03:37]} {[%emt 00:00:04]} 57. Rxh6 {[%clk
00:15:06]} {[%emt 00:00:08]} 1-0

[Event "1er Festival international de Cassis 2022"]
[Site "Cassis"]
[Date "2022.05.27"]
[Round "3.4"]
[White "Dudognon, Thibault"]
[Black "Yankelevich, Lev"]
[Result "1/2-1/2"]
[TimeControl "1 h 30 + 30 s"]
[WhiteElo "2305"]
[BlackElo "2473"]

1. e4 {[%clk 01:26:56]} {[%emt 00:02:21]} e5 {[%clk 01:29:35]} {[%emt
00:01:26]} 2. Nf3 {[%clk 01:27:18]} {[%emt 00:00:08]} Nc6 {[%clk 01:29:59]}
{[%emt 00:00:06]} 3. Nc3 {[%clk 01:27:44]} {[%emt 00:00:04]} Nf6 {[%clk
01:30:22]} {[%emt 00:00:07]} 4. d4 {[%clk 01:28:09]} {[%emt 00:00:05]} exd4
{[%clk 01:30:46]} {[%emt 00:00:06]} 5. Nxd4 {[%clk 01:28:34]} {[%emt 00:00:05]}
Bb4 {[%clk 01:31:11]} {[%emt 00:00:05]} 6. Nxc6 {[%clk 01:28:59]} {[%emt
00:00:05]} bxc6 {[%clk 01:31:37]} {[%emt 00:00:04]} 7. Bd3 {[%clk 01:29:25]}
{[%emt 00:00:04]} d5 {[%clk 01:31:58]} {[%emt 00:00:09]} 8. Bd2 {[%clk
01:29:49]} {[%emt 00:00:06]} O-O {[%clk 01:31:25]} {[%emt 00:01:03]} 9. O-O
{[%clk 01:30:07]} {[%emt 00:00:12]} Re8 {[%clk 01:29:44]} {[%emt 00:02:10]} 10.
Nxd5 {[%clk 01:30:17]} {[%emt 00:00:20]} Nxd5 {[%clk 01:25:15]} {[%emt
00:05:00]} 1/2-1/2